bitfinex-derivatives/quotes_BTCF0:USTF0_20250411
["timestamp","ask_amount","ask_price","bid_price","bid_amount"]
[1744409259598,0.0597554,83715.0,83714.0,0.1506116]
[1744409260897,0.0926554,83715.0,83714.0,0.1506116]
[1744409261803,0.1238554,83715.0,83714.0,0.1506116]
[1744409265406,0.1238554,83715.0,83714.0,0.1812116]
[1744409266810,0.1238554,83715.0,83714.0,0.1506116]
[1744409289929,0.1238554,83715.0,83714.0,0.0311]
[1744409290219,0.1238554,83715.0,83714.0,0.1506516]
[1744409290933,0.1238554,83715.0,83714.0,0.03114]
[1744409291427,0.1238554,83715.0,83714.0,0.1506516]
[1744409292027,0.1238554,83715.0,83714.0,4e-05]
[1744409292724,0.1195145,83712.0,83711.0,0.1525158]
[1744409292923,0.4803145,83712.0,83711.0,0.1525158]
[1744409293229,0.1195202,83708.0,83707.0,0.21410403]
[1744409293930,0.1195202,83708.0,83707.0,0.21415803]
[1744409294121,0.1802202,83708.0,83707.0,0.21410403]
[1744409294328,0.1195216,83707.0,83706.0,0.21410403]
[1744409294722,0.1838216,83707.0,83706.0,0.21410403]
[1744409295535,0.1838216,83707.0,83706.0,0.21414403]
[1744409297724,0.1838216,83707.0,83706.0,4e-05]
[1744409299426,0.1195359,83697.0,83696.0,9.841e-05]
[1744409299627,0.1195359,83697.0,83687.0,0.28587434]
[1744409299628,0.1195416,83693.0,83692.0,0.00017916]
[1744409299928,0.1195416,83693.0,83692.0,0.03017916]
[1744409300230,0.1847416,83693.0,83692.0,0.03017916]
[1744409301422,0.1847416,83693.0,83692.0,0.00017916]
[1744409302226,0.119543,83692.0,83691.0,2e-08]
[1744409302425,0.369543,83692.0,83691.0,2e-08]
[1744409302728,0.431643,83692.0,83691.0,2e-08]
[1744409302926,0.431643,83692.0,83691.0,4.002e-05]
[1744409303637,0.181643,83692.0,83691.0,4.002e-05]
[1744409304124,0.181643,83692.0,83691.0,2e-08]
[1744409305729,0.1195545,83684.0,83683.0,0.00017916]
[1744409305928,0.0597783,83683.0,83675.0,0.28587434]
[1744409306136,0.3608,83680.0,83675.0,0.28587434]
[1744409306437,0.3608,83680.0,83679.0,0.21414403]
[1744409306625,0.3608,83680.0,83679.0,4e-05]
[1744409307033,0.0597855,83673.0,83671.0,0.00017916]
[1744409307330,0.4248,83672.0,83671.0,0.00017916]
[1744409307530,0.456,83672.0,83671.0,0.00017916]
[1744409307835,0.5755716,83672.0,83671.0,0.00017916]
[1744409310537,0.5426716,83672.0,83671.0,0.00017916]
[1744409310735,0.1195788,83667.0,83666.0,5.4e-05]
[1744409311436,0.1195802,83666.0,83665.0,0.00478094]
[1744409311636,0.1806802,83666.0,83665.0,0.00478094]
[1744409312335,0.1195945,83656.0,83655.0,7.29e-05]
[1744409312635,0.1196031,83650.0,83649.0,0.0307]
[1744409313435,0.1196031,83650.0,83649.0,0.03074]
[1744409313630,0.1502031,83650.0,83649.0,0.1503445]
[1744409313835,0.1196031,83650.0,83649.0,0.03074]
[1744409314742,0.1196031,83650.0,83649.0,0.0307]
[1744409314932,0.1196031,83650.0,83649.0,0.03074]
[1744409315134,0.1503031,83650.0,83649.0,0.06344]
[1744409315332,0.1809031,83650.0,83649.0,0.06344]
[1744409319938,0.5417031,83650.0,83649.0,0.06344]
[1744409321841,0.1196102,83645.0,83644.0,5.4e-05]
[1744409322342,0.1196145,83642.0,83641.0,0.03317927]
[1744409323055,0.1840145,83642.0,83641.0,0.03317927]
[1744409324942,0.1840145,83642.0,83641.0,0.06577927]
[1744409328341,0.1840145,83642.0,83641.0,0.06581927]
[1744409328741,0.1840145,83642.0,83641.0,0.03281927]
[1744409330349,0.1196245,83635.0,83634.0,1e-08]
[1744409330651,0.1196288,83632.0,83631.0,0.0329]
[1744409330846,0.4804288,83632.0,83631.0,0.0329]
[1744409331055,0.5442288,83632.0,83631.0,0.0329]
[1744409339051,0.119636,83627.0,83626.0,0.0622]
[1744409339257,0.119636,83627.0,83626.0,0.0308]
[1744409339444,0.1196403,83624.0,83623.0,5.4e-05]
[1744409339648,0.1196431,83622.0,83621.0,0.0301]
[1744409340048,0.1500431,83622.0,83621.0,0.0301]
[1744409343557,0.1196431,83622.0,83621.0,0.0301]
[1744409344672,0.1196431,83622.0,83621.0,0.1497445]
[1744409345759,0.0598175,83628.0,83625.0,0.0598187]
[1744409345963,0.1794549,83628.0,83627.0,0.119636]
[1744409346354,0.1794549,83628.0,83627.0,0.214836]
[1744409350673,0.1794437,83636.0,83635.0,0.0598101]
[1744409351259,0.1794437,83636.0,83635.0,0.1516101]
[1744409351471,0.1794437,83636.0,83635.0,0.0613]
[1744409351472,0.5402437,83636.0,83635.0,0.0613]
[1744409351859,0.1794437,83636.0,83635.0,0.06134]
[1744409352059,0.5402437,83636.0,83635.0,0.06134]
[1744409352263,0.5402437,83636.0,83635.0,4e-05]
[1744409352661,0.1794639,83623.0,83622.0,0.1196425]
[1744409352862,0.1794639,83623.0,83622.0,0.1512965]
[1744409354167,0.1794639,83623.0,83622.0,0.2118965]
[1744409356262,0.1794639,83623.0,83622.0,0.061954]
[1744409356466,0.1794639,83623.0,83622.0,5.4e-05]
[1744409356667,0.059823,83620.0,83616.0,0.1523501]
[1744409356972,0.0598244,83618.0,83617.0,0.0317]
[1744409357365,0.0598244,83618.0,83617.0,0.0644]
[1744409357566,0.0598244,83618.0,83617.0,0.1840501]
[1744409357968,0.0920244,83618.0,83617.0,0.1840501]
[1744409358578,0.3608,83629.0,83622.0,0.0598215]
[1744409358783,0.0926187,83627.0,83626.0,0.1794546]
[1744409359279,0.1196388,83625.0,83624.0,0.0598201]
[1744409359681,0.1524388,83625.0,83624.0,0.0598601]
[1744409360080,0.1855388,83625.0,83624.0,4e-05]
[1744409360677,0.1196445,83621.0,83620.0,0.1196459]
[1744409361180,0.1841445,83621.0,83620.0,0.1196459]
[1744409361885,0.1524445,83621.0,83620.0,0.1196459]
[1744409366285,0.1844445,83621.0,83620.0,0.1196459]
[1744409368193,0.1196503,83617.0,83616.0,0.1197057]
[1744409368588,0.1822503,83617.0,83616.0,0.1196517]
[1744409368784,0.1822503,83617.0,83616.0,0.1196917]
[1744409381797,0.1822503,83617.0,83616.0,0.1822917]
[1744409388513,0.1822503,83617.0,83616.0,0.1512917]
[1744409400522,0.1822503,83617.0,83616.0,0.1512517]
[1744409401127,0.1822503,83617.0,83616.0,0.1196517]
[1744409405130,0.1514503,83617.0,83616.0,0.1196517]
[1744409405331,0.1514503,83617.0,83616.0,0.1831517]
[1744409405827,0.1846503,83617.0,83616.0,0.1831517]
[1744409416038,0.1846503,83617.0,83616.0,0.1518517]
[1744409416238,0.1846503,83617.0,83616.0,0.1196517]
[1744409417247,0.0318,83617.0,83616.0,0.1196517]
[1744409417446,0.1514503,83617.0,83616.0,0.1840517]
[1744409424149,0.1514503,83617.0,83616.0,0.5448517]
[1744409426461,0.1514503,83617.0,83616.0,0.1840517]
[1744409426753,0.1514503,83617.0,83616.0,0.5448517]
[1744409428157,0.1514503,83617.0,83616.0,0.1840517]
[1744409428350,0.1514503,83617.0,83616.0,0.5448517]
[1744409429058,0.0318,83617.0,83616.0,0.5448517]
[1744409429357,0.1514503,83617.0,83616.0,0.5448517]
[1744409430651,0.1514503,83617.0,83616.0,0.1840517]
[1744409430858,0.1514503,83617.0,83616.0,0.5448517]
[1744409434059,0.0318,83617.0,83616.0,0.5448517]
[1744409435658,0.1514503,83617.0,83616.0,0.5448517]
[1744409440762,0.1827503,83617.0,83616.0,0.5448517]
[1744409443264,0.1827503,83617.0,83616.0,0.1840517]
[1744409443455,0.1827503,83617.0,83616.0,0.5448517]
[1744409444463,0.0631,83617.0,83616.0,0.5448517]
[1744409445051,0.1827503,83617.0,83616.0,0.5448517]
[1744409447668,0.0631,83617.0,83616.0,0.5136517]
[1744409447869,0.14046681,83623.0,83622.0,0.1196431]
[1744409448265,0.14046681,83623.0,83622.0,0.2162431]
[1744409453169,0.17738789,83630.0,83629.0,0.1196331]
[1744409453365,0.17738789,83630.0,83629.0,0.4804331]
[1744409453565,0.17738789,83630.0,83629.0,0.5775331]
[1744409453974,0.033,83632.0,83631.0,0.1196302]
[1744409454378,0.033,83632.0,83631.0,0.1850302]
[1744409455169,0.0598015,83651.0,83639.0,0.1196188]
[1744409455474,0.062,83643.0,83639.0,0.1196188]
[1744409455875,0.062,83643.0,83639.0,0.1525188]
[1744409456373,0.0598075,83642.0,83639.0,0.1525188]
[1744409456568,0.0598075,83642.0,83639.0,0.1833188]
[1744409456771,0.0328,83641.0,83639.0,0.1833188]
[1744409457165,0.1196141,83643.0,83639.0,0.1833188]
[1744409457569,0.0926045,83646.0,83639.0,0.1833188]
[1744409457769,0.0328,83643.0,83639.0,0.1833188]
[1744409458170,0.0302,83642.0,83639.0,0.1833188]
[1744409458372,0.3608,83647.0,83639.0,0.1833188]
[1744409458573,0.1196056,83649.0,83639.0,0.1833188]
[1744409458775,0.1525063,83648.0,83639.0,0.1833188]
[1744409460277,0.0329,83648.0,83639.0,0.1833188]
[1744409460478,0.0598068,83643.0,83639.0,0.5133188]
[1744409460689,0.1570072,83642.0,83639.0,0.5133588]
[1744409461275,0.0656,83642.0,83639.0,0.5133588]
[1744409461676,0.0316,83641.0,83639.0,0.5133588]
[1744409461868,0.1512165,83641.0,83639.0,0.5133588]
[1744409462073,0.06287927,83640.0,83639.0,0.5133588]
[1744409463083,0.18249667,83640.0,83639.0,0.5133588]
[1744409463284,0.06287927,83640.0,83639.0,0.5133588]
[1744409464586,0.06287927,83640.0,83639.0,0.1525588]
[1744409465285,0.18249667,83640.0,83639.0,0.1525588]
[1744409465985,0.06287927,83640.0,83639.0,0.1525588]
[1744409467585,0.18249667,83640.0,83639.0,0.1525588]
[1744409468186,0.06287927,83640.0,83639.0,0.1525588]
[1744409470683,0.18249667,83640.0,83639.0,0.1525588]
[1744409473974,0.18249667,83640.0,83639.0,0.5133588]
[1744409474580,0.00017927,83640.0,83639.0,0.5438588]
[1744409475385,0.03257927,83640.0,83639.0,0.5438588]
[1744409475585,0.06277927,83640.0,83639.0,0.5438588]
[1744409477188,0.00017927,83640.0,83639.0,0.5438588]
[1744409478590,0.0617,83643.0,83642.0,0.1196145]
[1744409478790,0.0597984,83655.0,83650.0,0.1196031]
[1744409478994,0.1529016,83651.0,83650.0,0.4804031]
[1744409479200,0.17738789,83665.0,83653.0,0.1195988]
[1744409479386,0.1522889,83660.0,83653.0,0.1195988]
[1744409479587,0.1195925,83658.0,83653.0,0.1809988]
[1744409480087,0.1195932,83657.0,83653.0,0.1809988]
[1744409481395,0.1195948,83656.0,83653.0,0.1809988]
[1744409481992,0.1501931,83657.0,83653.0,0.1809988]
[1744409482193,0.1500931,83657.0,83653.0,0.1809988]
[1744409482594,0.1195945,83656.0,83653.0,0.5417988]
[1744409482988,0.059796,83658.0,83653.0,0.5417988]
[1744409483193,0.059796,83658.0,83653.0,0.6219188]
[1744409483596,0.1195934,83657.0,83653.0,0.6219188]
[1744409483800,0.059796,83658.0,83653.0,0.6219188]
[1744409483998,0.1195932,83657.0,83653.0,0.6219188]
[1744409485195,0.1195932,83657.0,83653.0,0.2611188]
[1744409485395,0.1195932,83657.0,83653.0,0.6219188]
[1744409485999,0.0597966,83657.0,83653.0,0.6219188]
[1744409486701,0.059798,83655.0,83653.0,0.5918388]
[1744409487200,0.0685,83654.0,83653.0,0.5918788]
[1744409487500,0.0685,83654.0,83653.0,0.6236788]
[1744409487988,0.1880974,83654.0,83653.0,0.6236788]
[1744409490900,0.1880974,83654.0,83653.0,0.11148]
[1744409491206,0.1880974,83654.0,83653.0,0.1996388]
[1744409491603,0.1880974,83654.0,83653.0,0.1996788]
[1744409492295,0.1880974,83654.0,83653.0,0.2327788]
[1744409493006,0.1880974,83654.0,83653.0,0.1527388]
[1744409504312,0.1245974,83654.0,83653.0,0.1527388]
[1744409504506,0.1245974,83654.0,83653.0,0.1835388]
[1744409504706,0.1576974,83654.0,83653.0,0.1527388]
[1744409504915,0.1909974,83654.0,83653.0,0.1527388]
[1744409505225,0.1909974,83654.0,83653.0,0.0331]
[1744409505514,0.1909974,83654.0,83653.0,4e-05]
[1744409505713,0.1196031,83650.0,83649.0,0.1196041]
[1744409506114,0.2159031,83650.0,83649.0,0.1196041]
[1744409506613,0.2159031,83650.0,83649.0,0.1509041]
[1744409514121,0.2159031,83650.0,83649.0,0.0313]
[1744409514414,0.1196059,83648.0,83647.0,5.4e-05]
[1744409514619,0.1196059,83648.0,83647.0,0.032654]
[1744409514815,0.1828059,83648.0,83647.0,0.032654]
[1744409515222,0.1828059,83648.0,83647.0,0.0326]
[1744409515415,0.1828059,83648.0,83647.0,0.03264]
[1744409516725,0.5436059,83648.0,83647.0,0.03264]
[1744409517622,0.5436059,83648.0,83647.0,4e-05]
[1744409521226,0.1196088,83646.0,83645.0,0.03247938]
[1744409521829,0.1841088,83646.0,83645.0,0.03247938]
[1744409523533,0.5449088,83646.0,83645.0,0.03247938]
[1744409525531,0.5449088,83646.0,83640.0,5.4e-05]
[1744409525532,0.1196159,83641.0,83640.0,5.4e-05]
[1744409525830,0.1196202,83638.0,83637.0,0.032]
[1744409526030,0.4804202,83638.0,83637.0,0.032]
[1744409526224,0.5450202,83638.0,83637.0,0.032]
[1744409529739,0.5450202,83638.0,83637.0,0.032]
[1744409531627,0.0598116,83636.0,83633.0,5.4e-05]
[1744409531834,0.119636,83627.0,83626.0,7.29e-05]
[1744409532033,0.480436,83627.0,83626.0,7.29e-05]
[1744409532235,0.577036,83627.0,83626.0,7.29e-05]
[1744409534537,0.513136,83627.0,83626.0,7.29e-05]
[1744409534847,0.152336,83627.0,83626.0,7.29e-05]
[1744409535641,0.543436,83627.0,83626.0,7.29e-05]
[1744409535841,0.543436,83627.0,83626.0,1e-07]
[1744409536141,0.1196503,83617.0,83616.0,0.0329]
[1744409536342,0.4804503,83617.0,83616.0,0.032954]
[1744409536640,0.1826503,83617.0,83616.0,0.032954]
[1744409539637,0.1826503,83617.0,83616.0,0.063254]
[1744409541756,0.5434503,83617.0,83616.0,0.063254]
[1744409543452,0.5131503,83617.0,83616.0,0.063254]
[1744409544853,0.5131503,83617.0,83616.0,0.064254]
[1744409546457,0.5451503,83617.0,83616.0,0.001054]
[1744409546648,0.5451503,83617.0,83616.0,0.001]
[1744409546952,0.5451503,83617.0,83616.0,0.00104]
[1744409554663,0.1843503,83617.0,83616.0,0.00104]
[1744409554957,0.5451503,83617.0,83616.0,0.00104]
[1744409564656,0.1843503,83617.0,83616.0,0.00104]
[1744409567766,0.5451503,83617.0,83616.0,0.00104]
[1744409570162,0.1196546,83614.0,83613.0,0.00478392]
[1744409570368,0.1196689,83604.0,83600.0,0.10013286]
[1744409570663,0.4804689,83604.0,83603.0,0.27608154]
[1744409570860,0.5430689,83604.0,83603.0,0.27598313]
[1744409571057,0.5430689,83604.0,83603.0,0.27602313]
[1744409571257,0.1511689,83604.0,83603.0,0.27602313]
[1744409571467,0.0598307,83610.0,83603.0,0.27602313]
[1744409571468,0.0598323,83607.0,83603.0,0.27602313]
[1744409571657,0.0598338,83605.0,83604.0,0.1794996]
[1744409572057,0.0598338,83605.0,83604.0,0.2425996]
[1744409572358,0.0598338,83605.0,83604.0,0.0631]
[1744409572764,0.0902338,83605.0,83604.0,0.0631]
[1744409573269,0.23257103,83605.0,83604.0,0.0631]
[1744409573463,0.23257103,83605.0,83604.0,0.06314]
[1744409574864,0.23257103,83605.0,83604.0,0.1828089]
[1744409577071,0.0902338,83605.0,83604.0,0.1828089]
[1744409582976,0.0598338,83605.0,83604.0,0.1828089]
[1744409585165,0.0899338,83605.0,83604.0,0.1828089]
[1744409587678,0.0598338,83605.0,83604.0,0.1828089]
[1744409588882,0.0928338,83605.0,83604.0,0.1828089]
[1744409605496,0.0928338,83605.0,83604.0,0.1827689]
[1744409605698,0.1243338,83605.0,83604.0,0.1827689]
[1744409615602,0.1243338,83605.0,83604.0,0.1525689]
[1744409616202,0.1243338,83605.0,83604.0,0.1196689]
[1744409631308,0.1196703,83603.0,83602.0,0.2445046]
[1744409632018,0.1839703,83603.0,83602.0,0.2445046]
[1744409638425,0.1839703,83603.0,83602.0,0.2119046]
[1744409639321,0.1839703,83603.0,83602.0,0.0922357]
[1744409640123,0.1839703,83603.0,83602.0,0.0324]
[1744409640523,0.1196732,83601.0,83600.0,0.1]
[1744409641025,0.1826732,83601.0,83600.0,0.1]
[1744409642525,0.1826732,83601.0,83600.0,0.10004]
[1744409644427,0.1196789,83597.0,83596.0,5.4e-05]
[1744409644824,0.1196861,83592.0,83591.0,0.28624418]
[1744409645226,0.1813861,83592.0,83591.0,0.28624418]
[1744409646732,0.1196904,83589.0,83588.0,5.4e-05]
[1744409648223,0.1196918,83588.0,83584.0,0.28624418]
[1744409648726,0.1818918,83588.0,83584.0,0.34609248]
[1744409649032,0.1818918,83588.0,83587.0,0.1244786]
[1744409650433,0.1818918,83588.0,83587.0,0.0047854]
[1744409650729,0.1818918,83588.0,83587.0,1e-07]
[1744409651232,0.0598506,83582.0,83578.0,7.29e-05]
[1744409651425,0.3720464,83588.0,83572.0,0.00013286]
[1744409651426,0.1197133,83573.0,83572.0,0.00013286]
[1744409651623,0.1197133,83573.0,83572.0,0.00018686]
[1744409651824,0.1197147,83572.0,83571.0,0.28676788]
[1744409652026,0.1831147,83572.0,83571.0,0.28676788]
[1744409653629,0.1831147,83572.0,83571.0,0.40648398]
[1744409653935,0.1831147,83572.0,83571.0,0.28676788]
[1744409654728,0.1197247,83565.0,83564.0,0.35785922]
[1744409654929,0.1197247,83565.0,83564.0,0.47758542]
[1744409654930,0.4805247,83565.0,83564.0,0.47758542]
[1744409655629,0.54053468,83581.0,83580.0,0.1197032]
[1744409655830,0.42083058,83581.0,83580.0,0.1197032]
[1744409656536,0.06003058,83581.0,83580.0,0.1197032]
[1744409657037,0.06003058,83581.0,83580.0,0.1515032]
[1744409657830,0.1197104,83576.0,83575.0,0.11971]
[1744409658234,0.1501104,83576.0,83575.0,0.18301]
[1744409659728,0.150109,83576.0,83575.0,0.18301]
[1744409660225,0.150109,83576.0,83575.0,0.21571]
[1744409669941,0.150109,83576.0,83575.0,0.18301]
[1744409670845,0.183309,83576.0,83575.0,0.18301]
[1744409676052,0.1986181,83579.0,83578.0,0.1197061]
[1744409676053,0.1063654,83579.0,83578.0,0.1197061]
[1744409676455,0.1063654,83579.0,83578.0,0.2126061]
[1744409676750,0.1381654,83579.0,83578.0,0.2126061]
[1744409679153,0.2578701,83579.0,83578.0,0.2126061]
[1744409679754,0.1515047,83579.0,83578.0,0.2126061]
[1744409683057,0.00017938,83581.0,83580.0,0.1197032]
[1744409683255,0.00017938,83581.0,83580.0,0.4805032]
[1744409683560,0.00017938,83581.0,83580.0,0.5436032]
[1744409685160,0.00017938,83581.0,83580.0,0.6231632]
[1744409695363,0.00017938,83581.0,83580.0,0.6230832]
[1744409700870,0.00017938,83581.0,83580.0,0.4805032]
[1744409701267,0.00017938,83581.0,83580.0,0.4805432]
[1744409701876,0.11988118,83581.0,83580.0,0.4805432]
[1744409702467,0.18148118,83581.0,83580.0,0.4805432]
[1744409708083,0.06177938,83581.0,83580.0,0.4805432]
[1744409708274,0.06177938,83581.0,83580.0,0.5435432]
[1744409709178,0.06177938,83581.0,83580.0,0.5122432]
[1744409709378,0.06177938,83581.0,83580.0,0.4805432]
[1744409711184,0.18148118,83581.0,83580.0,0.4805432]
[1744409711585,0.18148118,83581.0,83580.0,0.1197032]
[1744409711976,0.06177938,83581.0,83580.0,0.1197032]
[1744409712179,0.18148118,83581.0,83580.0,0.1197032]
[1744409712381,0.18148118,83581.0,83580.0,0.1197432]
[1744409716096,0.18148118,83581.0,83580.0,0.1197032]
[1744409716395,0.18148118,83581.0,83580.0,0.1197432]
[1744409720090,0.18148118,83581.0,83580.0,0.1197032]
[1744409720297,0.18148118,83581.0,83580.0,0.1197432]
[1744409721796,0.32375999,83581.0,83580.0,0.1197432]
[1744409726407,0.14245819,83581.0,83580.0,0.5350432]
[1744409726603,0.14245819,83581.0,83580.0,0.5985432]
[1744409729105,0.00017938,83581.0,83580.0,0.5985432]
[1744409730107,0.00017938,83581.0,83580.0,0.6779032]
[1744409730506,0.00017938,83581.0,83580.0,0.6779432]
[1744409731910,0.11988118,83581.0,83580.0,0.6779432]
[1744409732110,0.11988118,83581.0,83580.0,0.6454032]
[1744409732303,0.18458118,83581.0,83580.0,0.6454432]
[1744409732504,0.18458118,83581.0,83580.0,0.6754432]
[1744409732705,0.06487938,83581.0,83580.0,0.6754432]
[1744409732910,0.18458118,83581.0,83580.0,0.5960432]
[1744409733616,0.18458118,83581.0,83580.0,0.5350032]
[1744409733802,0.18458118,83581.0,83580.0,0.41534]
[1744409734112,0.18458118,83581.0,83580.0,0.4153]
[1744409734308,0.18458118,83581.0,83580.0,0.41534]
[1744409734512,0.18458118,83581.0,83580.0,0.5350432]
[1744409735407,0.18458118,83581.0,83580.0,0.1197432]
[1744409736007,0.54538118,83581.0,83580.0,4e-05]
[1744409736209,0.1795628,83577.0,83576.0,0.0598542]
[1744409736408,0.0598577,83572.0,83567.0,7.29e-05]
[1744409736610,0.0598552,83575.0,83564.0,0.1197255]
[1744409736611,0.1197247,83565.0,83564.0,0.1197255]
[1744409738611,0.1822247,83565.0,83564.0,0.1197255]
[1744409744318,0.119729,83562.0,83561.0,0.12451589]
[1744409744922,0.217229,83562.0,83561.0,0.12451589]
[1744409745919,0.217229,83562.0,83561.0,0.18438109]
[1744409749817,0.217229,83562.0,83561.0,0.00478689]
[1744409751021,0.217229,83562.0,83561.0,0.00482689]
[1744409751814,0.217229,83562.0,83561.0,0.12455739]
[1744409752010,0.217229,83562.0,83561.0,0.00482689]
[1744409752011,0.578029,83562.0,83561.0,0.00482689]
[1744409752210,0.578029,83562.0,83561.0,0.00478689]
[1744409752416,0.578029,83562.0,83561.0,0.00482689]
[1744409752610,0.578029,83562.0,83561.0,0.00478689]
[1744409752812,0.68472462,83562.0,83561.0,0.00482689]
[1744409756612,0.68472462,83562.0,83561.0,0.12455739]
[1744409757016,0.68472462,83562.0,83561.0,0.00482689]
[1744409758225,0.68472462,83562.0,83541.0,0.4153]
[1744409758226,0.1796315,83546.0,83545.0,0.1197534]
[1744409758610,0.2395082,83546.0,83545.0,0.1197534]
[1744409759013,0.2395082,83546.0,83545.0,0.1525534]
[1744409759214,0.2395082,83546.0,83544.0,0.0598774]
[1744409759215,0.1197563,83543.0,83542.0,0.2395093]
[1744409759419,0.1197563,83543.0,83542.0,0.28119432]
[1744409759721,0.17979159,83554.0,83553.0,0.1197419]
[1744409760124,0.17979159,83554.0,83553.0,0.1829419]
[1744409761120,0.17979159,83554.0,83553.0,0.2157419]
[1744409762926,0.17979159,83554.0,83553.0,0.1197419]
[1744409763128,0.17979159,83554.0,83553.0,0.1808419]
[1744409763830,0.00208317,83702.0,83562.0,0.119729]
[1744409763831,0.0598581,83571.0,83562.0,0.119729]
[1744409764030,0.0302,83570.0,83562.0,0.480529]
[1744409764330,0.26208228,83563.0,83562.0,0.480529]
[1744409764524,0.26208228,83563.0,83562.0,0.510629]
[1744409765334,0.26208228,83563.0,83562.0,0.541929]
[1744409765734,0.1197276,83563.0,83562.0,0.541929]
[1744409766228,0.1501276,83563.0,83562.0,0.541929]
[1744409768519,0.1501276,83563.0,83562.0,0.4222]
[1744409768925,0.1501276,83563.0,83562.0,0.541929]
[1744409770427,0.25696114,83563.0,83562.0,0.541929]
[1744409770933,0.1796079,83556.0,83555.0,0.1796084]
[1744409771130,0.1796079,83556.0,83555.0,0.2115084]
[1744409771359,0.1796079,83556.0,83555.0,0.2418084]
[1744409771751,0.2126079,83556.0,83555.0,0.2418084]
[1744409772049,0.2126079,83556.0,83555.0,0.3016779]
[1744409775731,0.1197391,83555.0,83554.0,0.00017949]
[1744409775933,0.1501391,83555.0,83554.0,0.00017949]
[1744409776137,0.1832391,83555.0,83554.0,0.00017949]
[1744409776931,0.1832391,83555.0,83554.0,0.00021949]
[1744409778824,0.1832391,83555.0,83554.0,9e-08]
[1744409779247,0.1197462,83550.0,83549.0,0.4153]
[1744409779575,0.119752,83546.0,83545.0,5.4e-05]
[1744409779753,0.480552,83546.0,83545.0,5.4e-05]
[1744409779946,0.545152,83546.0,83545.0,5.4e-05]
[1744409780957,0.0646,83546.0,83545.0,0.1198074]
[1744409781347,0.184352,83546.0,83545.0,0.1808074]
[1744409781744,0.184352,83546.0,83545.0,0.061054]
[1744409781954,0.184352,83546.0,83545.0,0.1808074]
[1744409782349,0.184352,83546.0,83545.0,5.4e-05]
[1744409782551,0.545152,83546.0,83545.0,5.4e-05]
[1744409782747,0.1796359,83543.0,83542.0,0.1197572]
[1744409783633,0.0321,83546.0,83545.0,0.1197534]
[1744409783837,0.119752,83546.0,83545.0,0.17963]
[1744409784026,0.119752,83546.0,83545.0,0.24013]
[1744409786381,0.152252,83546.0,83545.0,0.24013]
[1744409786672,0.152252,83546.0,83541.0,0.12884556]
[1744409786673,0.1197577,83542.0,83541.0,0.12884556]
[1744409786965,0.1197577,83542.0,83541.0,0.1197591]
[1744409787168,0.1522577,83542.0,83541.0,0.1832591]
[1744409788265,0.1197577,83542.0,83541.0,0.1832591]
[1744409789350,0.1197606,83540.0,83538.0,0.3608]
[1744409789541,0.4805606,83540.0,83528.0,0.1247882]
[1744409789740,0.1197663,83536.0,83535.0,0.00478838]
[1744409790240,0.1501663,83536.0,83535.0,0.00478838]
[1744409792639,0.1501663,83536.0,83535.0,0.12455608]
[1744409792845,0.0322,83540.0,83539.0,0.119762]
[1744409793148,0.1796466,83538.0,83537.0,0.1197641]
[1744409793346,0.1197663,83536.0,83535.0,0.00478838]
[1744409793751,0.1514663,83536.0,83535.0,0.00478838]
[1744409793949,0.0920807,83540.0,83535.0,0.00482838]
[1744409793950,0.0322,83540.0,83535.0,0.00482838]
[1744409794249,0.0920805,83540.0,83539.0,0.119762]
[1744409794455,0.2118454,83540.0,83539.0,0.119762]
[1744409796448,0.1197663,83536.0,83535.0,0.00482838]
[1744409796759,0.1197663,83536.0,83535.0,0.12455608]
[1744409796947,0.1197663,83536.0,83535.0,0.12459608]
[1744409798045,0.4805663,83536.0,83535.0,0.00482838]
[1744409799247,0.4805663,83536.0,83535.0,0.00478838]
[1744409799454,0.4805663,83536.0,83535.0,0.00482838]
[1744409799758,0.58735131,83536.0,83535.0,0.00482838]
[1744409799956,0.62015131,83536.0,83535.0,0.00482838]
[1744409802658,0.62015131,83536.0,83535.0,0.00478838]
[1744409802953,0.62015131,83536.0,83535.0,0.00482838]
[1744409803554,0.25935131,83536.0,83535.0,0.00482838]
[1744409803957,0.1525663,83536.0,83535.0,0.12459608]
[1744409805059,0.1525663,83536.0,83535.0,0.18609608]
[1744409812460,0.1525663,83536.0,83535.0,0.12459608]
[1744409813558,0.1525663,83536.0,83535.0,0.18769608]
[1744409814249,0.1829663,83536.0,83535.0,0.18769608]
[1744409822960,0.0328,83536.0,83535.0,0.18769608]
[1744409823162,0.0328,83536.0,83535.0,0.54849608]
[1744409823762,0.1525663,83536.0,83535.0,0.54849608]
[1744409825373,0.0328,83536.0,83535.0,0.54849608]
[1744409825568,0.35696954,83541.0,83540.0,0.1197606]
[1744409825963,0.1796399,83541.0,83540.0,0.1510606]
[1744409826771,0.1796399,83541.0,83540.0,0.1841606]
[1744409827766,0.17732964,83543.0,83541.0,0.1197591]
[1744409827964,0.17732964,83543.0,83542.0,0.1197577]
[1744409830563,0.1498531,83546.0,83545.0,0.1197534]
[1744409830768,0.1498531,83546.0,83545.0,0.4805534]
[1744409831468,0.1498531,83546.0,83545.0,0.5449534]
[1744409835974,0.1814531,83546.0,83545.0,0.5449534]
[1744409837079,0.1814531,83546.0,83545.0,0.1841534]
[1744409837272,0.1814531,83546.0,83545.0,0.5449534]
[1744409840479,0.1814531,83546.0,83545.0,0.4805534]
[1744409843179,0.1197548,83544.0,83543.0,0.07932]
[1744409843383,0.1197548,83544.0,83543.0,0.1990763]
[1744409843572,0.1817548,83544.0,83543.0,0.1990763]
[1744409843771,0.1817548,83544.0,83543.0,0.07932]
[1744409844890,0.1817548,83544.0,83543.0,0.1990763]
[1744409846081,0.1197563,83543.0,83542.0,5.4e-05]
[1744409846282,0.4805563,83543.0,83542.0,5.4e-05]
[1744409846491,0.5444563,83543.0,83542.0,5.4e-05]
[1744409847291,0.1197663,83536.0,83535.0,0.00478838]
[1744409847684,0.2144663,83536.0,83535.0,0.00478838]
[1744409847885,0.2144663,83536.0,83535.0,0.00482838]
[1744409848096,0.2144663,83536.0,83535.0,0.12459608]
[1744409848485,0.2144663,83536.0,83535.0,0.00482838]
[1744409848886,0.2144663,83536.0,83535.0,0.12459608]
[1744409854795,0.2144663,83536.0,83535.0,0.00482838]
[1744409855098,0.2144663,83536.0,83535.0,0.00478838]
[1744409855099,0.5752663,83536.0,83535.0,0.00478838]
[1744409855296,0.5752663,83536.0,83535.0,0.00482838]
[1744409861300,0.71760727,83536.0,83535.0,0.00482838]
[1744409861701,0.71760727,83536.0,83535.0,0.12459608]
[1744409861898,0.71760727,83536.0,83535.0,0.00482838]
[1744409862105,0.71760727,83536.0,83535.0,0.00478838]
[1744409862400,0.71760727,83536.0,83535.0,0.00482838]
[1744409862588,0.71760727,83536.0,83535.0,0.00478838]
[1744409862789,0.71760727,83536.0,83535.0,0.00482838]
[1744409865098,0.63349925,83536.0,83535.0,0.00482838]
[1744409867898,0.1197749,83530.0,83529.0,5.4e-05]